[Event "*** Titled Tuesday Blitz"]
[Site "Chess.com"]
[Date "2020.04.21"]
[Round "3"]
[White "SketchyMoves"]
[Black "Msb2"]
[Result "0-1"]
[WhiteElo "2672"]
[BlackElo "2918"]
[TimeControl "180+1"]
[EndTime "10:29:09 PDT"]
[Termination "Msb2 won by resignation"]

1. e4 {[%clk 0:03:00.9]} 1... e6 {[%clk 0:02:58.6]} 2. d4 {[%clk 0:02:59.3]}
2... d5 {[%clk 0:02:59.1]} 3. Nd2 {[%clk 0:02:58.1]} 3... c5 {[%clk 0:02:58.4]}
4. dxc5 {[%clk 0:02:55.1]} 4... Nf6 {[%clk 0:02:51.5]} 5. Bd3 {[%clk 0:02:45.5]}
5... dxe4 {[%clk 0:02:50]} 6. Nxe4 {[%clk 0:02:45.5]} 6... Nxe4 {[%clk
0:02:50.6]} 7. Bxe4 {[%clk 0:02:46.4]} 7... Qxd1+ {[%clk 0:02:51]} 8. Kxd1
{[%clk 0:02:47.3]} 8... Bxc5 {[%clk 0:02:51.6]} 9. Ke2 {[%clk 0:02:43.8]} 9...
Nd7 {[%clk 0:02:52.2]} 10. Be3 {[%clk 0:02:38.7]} 10... Ke7 {[%clk 0:02:48.1]}
11. Rd1 {[%clk 0:02:31.9]} 11... Bxe3 {[%clk 0:02:46.7]} 12. Kxe3 {[%clk
0:02:32.8]} 12... Nc5 {[%clk 0:02:41.6]} 13. Ne2 {[%clk 0:02:23.8]} 13... Nxe4
{[%clk 0:02:40.9]} 14. Kxe4 {[%clk 0:02:24.3]} 14... Bd7 {[%clk 0:02:40.7]} 15.
Nd4 {[%clk 0:02:19.1]} 15... f6 {[%clk 0:02:39.8]} 16. f4 {[%clk 0:02:19.1]}
16... Rhd8 {[%clk 0:02:35.1]} 17. Rhe1 {[%clk 0:02:18.8]} 17... Rac8 {[%clk
0:02:31.2]} 18. c3 {[%clk 0:02:04.4]} 18... Kf7 {[%clk 0:02:28.7]} 19. g3 {[%clk
0:02:03.4]} 19... Ba4 {[%clk 0:02:26.1]} 20. Rd2 {[%clk 0:01:52.7]} 20... Bc6+
{[%clk 0:02:24.5]} 21. Ke3 {[%clk 0:01:50.9]} 21... Bd5 {[%clk 0:02:24.3]} 22.
a3 {[%clk 0:01:49.2]} 22... a6 {[%clk 0:02:22.7]} 23. Red1 {[%clk 0:01:48]}
23... h5 {[%clk 0:02:13.7]} 24. Kf2 {[%clk 0:01:46.6]} 24... Rd7 {[%clk
0:02:00.8]} 25. Nf5 {[%clk 0:01:43.4]} 25... Rcc7 {[%clk 0:01:43.1]} 26. Ne3
{[%clk 0:01:35.9]} 26... Bc6 {[%clk 0:01:43.1]} 27. Rxd7+ {[%clk 0:01:28.4]}
27... Bxd7 {[%clk 0:01:44]} 28. Rd2 {[%clk 0:01:23.8]} 28... Ke7 {[%clk
0:01:44]} 29. Re2 {[%clk 0:01:22.9]} 29... Bc6 {[%clk 0:01:43]} 30. Nf5+ {[%clk
0:01:21.5]} 30... Kf7 {[%clk 0:01:43]} 31. Nd6+ {[%clk 0:01:19.4]} 31... Ke7
{[%clk 0:01:37.5]} 32. Nf5+ {[%clk 0:01:19.5]} 32... Kf7 {[%clk 0:01:21.1]} 33.
Nd6+ {[%clk 0:01:19.5]} 33... Kg6 {[%clk 0:01:17]} 34. Rxe6 {[%clk 0:01:11.8]}
34... Bd5 {[%clk 0:01:16.5]} 35. Re2 {[%clk 0:01:02.5]} 35... Rd7 {[%clk
0:01:16.7]} 36. Ne4 {[%clk 0:00:58.6]} 36... Kf5 {[%clk 0:01:11.2]} 37. Nc5
{[%clk 0:00:50.8]} 37... Rc7 {[%clk 0:01:11.4]} 38. Nd3 {[%clk 0:00:33.4]} 38...
Bc4 {[%clk 0:01:03.5]} 39. Rd2 {[%clk 0:00:33.3]} 39... Rd7 {[%clk 0:00:33.8]}
40. Ke3 {[%clk 0:00:33]} 40... Rxd3+ {[%clk 0:00:31]} 41. Rxd3 {[%clk
0:00:32.5]} 41... Bxd3 {[%clk 0:00:31.9]} 42. Kxd3 {[%clk 0:00:33.1]} 42... Kg4
{[%clk 0:00:32.8]} 43. Ke3 {[%clk 0:00:09.9]} 43... Kh3 {[%clk 0:00:33.2]} 44.
Kf2 {[%clk 0:00:09.5]} 44... g5 {[%clk 0:00:18.7]} 45. c4 {[%clk 0:00:09.6]}
45... Kxh2 {[%clk 0:00:18.4]} 46. fxg5 {[%clk 0:00:08.9]} 46... fxg5 {[%clk
0:00:19.3]} 47. b4 {[%clk 0:00:08.7]} 47... g4 {[%clk 0:00:19.6]} 48. a4 {[%clk
0:00:05.7]} 48... h4 {[%clk 0:00:20.1]} 49. gxh4 {[%clk 0:00:03.5]} 49... g3+
{[%clk 0:00:21]} 50. Kf3 {[%clk 0:00:02.6]} 50... g2 {[%clk 0:00:21.9]} 51. h5
{[%clk 0:00:03.4]} 51... g1=Q {[%clk 0:00:22.8]} 52. h6 {[%clk 0:00:03.6]} 52...
Qg6 {[%clk 0:00:22.4]} 0-1

[Event "*** Titled Tuesday Blitz"]
[Site "Chess.com"]
[Date "2020.04.21"]
[Round "3"]
[White "Andrei_Belozerov"]
[Black "Yaacovn"]
[Result "0-1"]
[WhiteElo "2621"]
[BlackElo "2822"]
[TimeControl "180+1"]
[EndTime "10:29:09 PDT"]
[Termination "Yaacovn won by resignation"]

1. e4 {[%clk 0:03:00.9]} 1... c6 {[%clk 0:02:57.2]} 2. d4 {[%clk 0:03:00.1]}
2... d5 {[%clk 0:02:57.3]} 3. Nd2 {[%clk 0:03:00.7]} 3... dxe4 {[%clk
0:02:57.2]} 4. Nxe4 {[%clk 0:03:01.3]} 4... Nf6 {[%clk 0:02:58]} 5. Nxf6+ {[%clk
0:03:00.8]} 5... gxf6 {[%clk 0:02:58]} 6. Nf3 {[%clk 0:02:59.4]} 6... Bg4 {[%clk
0:02:57.7]} 7. Be2 {[%clk 0:02:59.5]} 7... e6 {[%clk 0:02:57.7]} 8. Bf4 {[%clk
0:02:57.9]} 8... Bd6 {[%clk 0:02:57.3]} 9. Bg3 {[%clk 0:02:56.1]} 9... Qc7
{[%clk 0:02:57.2]} 10. O-O {[%clk 0:02:48.1]} 10... Nd7 {[%clk 0:02:57]} 11. c4
{[%clk 0:02:44.2]} 11... O-O-O {[%clk 0:02:56.5]} 12. b4 {[%clk 0:02:38.8]}
12... h5 {[%clk 0:02:50.9]} 13. c5 {[%clk 0:02:34.1]} 13... Bxg3 {[%clk
0:02:50.3]} 14. hxg3 {[%clk 0:02:32.9]} 14... Bxf3 {[%clk 0:02:46.5]} 15. Bxf3
{[%clk 0:02:30]} 15... h4 {[%clk 0:02:44.5]} 16. g4 {[%clk 0:02:28.9]} 16... Qf4
{[%clk 0:02:16.8]} 17. Rb1 {[%clk 0:02:11]} 17... Ne5 {[%clk 0:02:14.2]} 18. b5
{[%clk 0:01:28.7]} 18... h3 {[%clk 0:01:51.2]} 19. dxe5 {[%clk 0:01:18.6]} 19...
hxg2 {[%clk 0:01:26.4]} 20. Qxd8+ {[%clk 0:01:05.7]} 20... Kxd8 {[%clk
0:01:18.1]} 21. Rfd1+ {[%clk 0:01:05.2]} 21... Kc7 {[%clk 0:01:14.3]} 22. Bxg2
{[%clk 0:01:04.3]} 22... Qxg4 {[%clk 0:01:05.7]} 23. Rd3 {[%clk 0:00:56.9]}
23... Rd8 {[%clk 0:00:46.3]} 24. b6+ {[%clk 0:00:36.1]} 24... axb6 {[%clk
0:00:42]} 25. cxb6+ {[%clk 0:00:36.3]} 25... Kc8 {[%clk 0:00:41.2]} 26. Rxd8+
{[%clk 0:00:18.1]} 26... Kxd8 {[%clk 0:00:41.1]} 27. exf6 {[%clk 0:00:18.7]}
27... Qg6 {[%clk 0:00:34.8]} 28. Rd1+ {[%clk 0:00:17.7]} 28... Kc8 {[%clk
0:00:34]} 29. a4 {[%clk 0:00:16.5]} 29... Qxf6 {[%clk 0:00:33.3]} 30. a5 {[%clk
0:00:16.1]} 30... Qc3 {[%clk 0:00:32.7]} 31. a6 {[%clk 0:00:15]} 31... bxa6
{[%clk 0:00:31.6]} 32. Rd6 {[%clk 0:00:13.9]} 32... Qc1+ {[%clk 0:00:31.2]} 33.
Bf1 {[%clk 0:00:12.8]} 33... Kb7 {[%clk 0:00:30]} 34. Rd7+ {[%clk 0:00:12.4]}
34... Kxb6 {[%clk 0:00:30.2]} 35. Rxf7 {[%clk 0:00:13.1]} 35... a5 {[%clk
0:00:29.7]} 36. Rf3 {[%clk 0:00:13]} 36... a4 {[%clk 0:00:29.1]} 37. Kg2 {[%clk
0:00:12.7]} 37... Qb2 {[%clk 0:00:28.4]} 38. Bc4 {[%clk 0:00:11.7]} 38... e5
{[%clk 0:00:28.2]} 39. Re3 {[%clk 0:00:11.2]} 39... Kc5 {[%clk 0:00:27.3]} 40.
Bg8 {[%clk 0:00:10.5]} 40... Qd4 {[%clk 0:00:26.7]} 41. Rg3 {[%clk 0:00:09.6]}
41... Kb4 {[%clk 0:00:25.2]} 42. Kh3 {[%clk 0:00:08.1]} 42... c5 {[%clk
0:00:23.6]} 43. Rg4 {[%clk 0:00:07.4]} 43... e4 {[%clk 0:00:24.1]} 44. Bh7
{[%clk 0:00:07.6]} 44... a3 {[%clk 0:00:20.7]} 45. Rxe4 {[%clk 0:00:07.4]} 45...
Qxe4 {[%clk 0:00:20.7]} 46. Bxe4 {[%clk 0:00:08]} 46... a2 {[%clk 0:00:21.2]}
47. Bd5 {[%clk 0:00:07.3]} 47... a1=Q {[%clk 0:00:20.3]} 0-1

[Event "*** Titled Tuesday Blitz"]
[Site "Chess.com"]
[Date "2020.04.21"]
[Round "3"]
[White "stanyga"]
[Black "LiemLe"]
[Result "1-0"]
[WhiteElo "2713"]
[BlackElo "2993"]
[TimeControl "180+1"]
[EndTime "10:29:10 PDT"]
[Termination "stanyga won on time"]

1. e4 {[%clk 0:03:00.9]} 1... e5 {[%clk 0:02:59.2]} 2. Nf3 {[%clk 0:03:00.5]}
2... Nc6 {[%clk 0:02:59.8]} 3. Bb5 {[%clk 0:02:58.8]} 3... a6 {[%clk 0:02:59.5]}
4. Ba4 {[%clk 0:02:58.7]} 4... Nf6 {[%clk 0:02:59.5]} 5. O-O {[%clk 0:02:58.6]}
5... Bc5 {[%clk 0:02:58.4]} 6. c3 {[%clk 0:02:55.2]} 6... b5 {[%clk 0:02:56.2]}
7. Bb3 {[%clk 0:02:54.6]} 7... d6 {[%clk 0:02:56.3]} 8. d4 {[%clk 0:02:53.7]}
8... Bb6 {[%clk 0:02:56.3]} 9. Re1 {[%clk 0:02:53.4]} 9... O-O {[%clk
0:02:51.9]} 10. h3 {[%clk 0:02:47.7]} 10... h6 {[%clk 0:02:50.7]} 11. Be3 {[%clk
0:02:45.9]} 11... Re8 {[%clk 0:02:41.3]} 12. Nbd2 {[%clk 0:02:42.8]} 12... Bd7
{[%clk 0:02:33.2]} 13. d5 {[%clk 0:02:29.9]} 13... Ne7 {[%clk 0:02:20.2]} 14.
Bxb6 {[%clk 0:02:20.5]} 14... cxb6 {[%clk 0:02:21.1]} 15. Bc2 {[%clk 0:02:14.4]}
15... Ng6 {[%clk 0:02:20.5]} 16. Bd3 {[%clk 0:02:14.3]} 16... Nh7 {[%clk
0:01:56.9]} 17. Bf1 {[%clk 0:01:59]} 17... Qf6 {[%clk 0:01:55.2]} 18. Kh2 {[%clk
0:01:43.5]} 18... h5 {[%clk 0:01:50.9]} 19. c4 {[%clk 0:01:26.9]} 19... bxc4
{[%clk 0:01:49.5]} 20. Nxc4 {[%clk 0:01:26]} 20... Rab8 {[%clk 0:01:48.5]} 21.
Rc1 {[%clk 0:01:23.5]} 21... Rec8 {[%clk 0:01:36.7]} 22. Qd2 {[%clk 0:01:09.3]}
22... h4 {[%clk 0:01:19.8]} 23. Qe3 {[%clk 0:01:08.6]} 23... b5 {[%clk
0:00:46.5]} 24. Nb6 {[%clk 0:01:07.9]} 24... Rxc1 {[%clk 0:00:35.2]} 25. Nxd7
{[%clk 0:00:59.5]} 25... Qd8 {[%clk 0:00:21.9]} 26. Rxc1 {[%clk 0:00:47]} 26...
Qxd7 {[%clk 0:00:21.9]} 27. Rc6 {[%clk 0:00:46.2]} 27... a5 {[%clk 0:00:17.2]}
28. Rb6 {[%clk 0:00:44.3]} 28... Qc7 {[%clk 0:00:13.2]} 29. Rc6 {[%clk
0:00:32.8]} 29... Qd8 {[%clk 0:00:12.4]} 30. Qa7 {[%clk 0:00:25.1]} 30... Nf6
{[%clk 0:00:12.2]} 31. Nd2 {[%clk 0:00:21.1]} 31... Ne8 {[%clk 0:00:08.3]} 32.
Qe3 {[%clk 0:00:17.6]} 32... Ne7 {[%clk 0:00:06.3]} 33. Rc1 {[%clk 0:00:15.9]}
33... Rc8 {[%clk 0:00:04.5]} 34. Rxc8 {[%clk 0:00:14.6]} 34... Qxc8 {[%clk
0:00:05.4]} 35. Bxb5 {[%clk 0:00:14.4]} 35... Nf6 {[%clk 0:00:06]} 36. Nc4
{[%clk 0:00:11]} 36... Qc7 {[%clk 0:00:03.5]} 37. a4 {[%clk 0:00:11.1]} 37...
Ng6 {[%clk 0:00:03.1]} 38. f3 {[%clk 0:00:10.4]} 38... Nh5 {[%clk 0:00:01.8]}
39. Qb6 {[%clk 0:00:10.4]} 39... Qe7 {[%clk 0:00:02]} 40. Qe3 {[%clk 0:00:07]}
40... Nhf4 {[%clk 0:00:02.2]} 41. Kh1 {[%clk 0:00:05.9]} 1-0

[Event "*** Titled Tuesday Blitz"]
[Site "Chess.com"]
[Date "2020.04.21"]
[Round "3"]
[White "machupichu10"]
[Black "TengisChess"]
[Result "1/2-1/2"]
[WhiteElo "2760"]
[BlackElo "2455"]
[TimeControl "180+1"]
[EndTime "10:29:10 PDT"]
[Termination "Game drawn by stalemate"]

1. d4 {[%clk 0:03:00.9]} 1... Nf6 {[%clk 0:02:58.7]} 2. Nf3 {[%clk 0:03:00.3]}
2... g6 {[%clk 0:02:58.1]} 3. c4 {[%clk 0:03:00.5]} 3... Bg7 {[%clk 0:02:58.4]}
4. g3 {[%clk 0:03:00.8]} 4... O-O {[%clk 0:02:59.3]} 5. Bg2 {[%clk 0:03:01.2]}
5... d6 {[%clk 0:02:57.1]} 6. O-O {[%clk 0:03:01.3]} 6... c5 {[%clk 0:02:57.8]}
7. Nc3 {[%clk 0:02:58.4]} 7... Nc6 {[%clk 0:02:54]} 8. h3 {[%clk 0:02:50.1]}
8... Bd7 {[%clk 0:02:52.6]} 9. dxc5 {[%clk 0:02:48.1]} 9... dxc5 {[%clk
0:02:51.2]} 10. Be3 {[%clk 0:02:48.5]} 10... Qa5 {[%clk 0:02:48.6]} 11. Qb3
{[%clk 0:02:48.6]} 11... Qb4 {[%clk 0:02:30.6]} 12. Rfd1 {[%clk 0:02:43.1]}
12... Rfd8 {[%clk 0:02:27.6]} 13. Qxb4 {[%clk 0:02:32.6]} 13... cxb4 {[%clk
0:02:26.3]} 14. Nd5 {[%clk 0:02:32.9]} 14... Nxd5 {[%clk 0:02:18]} 15. cxd5
{[%clk 0:02:33.8]} 15... Ne5 {[%clk 0:02:16.8]} 16. Nxe5 {[%clk 0:02:28.8]}
16... Bxe5 {[%clk 0:02:17.7]} 17. Bd4 {[%clk 0:02:28.6]} 17... Bxd4 {[%clk
0:02:12.4]} 18. Rxd4 {[%clk 0:02:29.5]} 18... a5 {[%clk 0:02:13]} 19. Rc1 {[%clk
0:02:27.6]} 19... Rac8 {[%clk 0:02:12.4]} 20. Rdc4 {[%clk 0:02:27.8]} 20... Rxc4
{[%clk 0:02:12.4]} 21. Rxc4 {[%clk 0:02:28.7]} 21... Rc8 {[%clk 0:02:11.4]} 22.
Rxc8+ {[%clk 0:02:24.6]} 22... Bxc8 {[%clk 0:02:12.3]} 23. e4 {[%clk 0:02:23.8]}
23... e5 {[%clk 0:02:09.2]} 24. f4 {[%clk 0:01:48.4]} 24... f6 {[%clk
0:02:07.6]} 25. Kf2 {[%clk 0:01:48.6]} 25... Kf8 {[%clk 0:02:07.7]} 26. Ke3
{[%clk 0:01:49]} 26... Ke7 {[%clk 0:02:08]} 27. h4 {[%clk 0:01:47.3]} 27... Kd6
{[%clk 0:02:07.8]} 28. Bf1 {[%clk 0:01:46.8]} 28... Kc5 {[%clk 0:02:07]} 29. Be2
{[%clk 0:01:45.5]} 29... Bd7 {[%clk 0:02:05.2]} 30. g4 {[%clk 0:01:45.3]} 30...
h6 {[%clk 0:02:03.1]} 31. g5 {[%clk 0:01:45.3]} 31... hxg5 {[%clk 0:01:58.6]}
32. hxg5 {[%clk 0:01:42.4]} 32... exf4+ {[%clk 0:01:39.9]} 33. Kxf4 {[%clk
0:01:43.3]} 33... fxg5+ {[%clk 0:01:39.8]} 34. Kxg5 {[%clk 0:01:26.8]} 34... Kd4
{[%clk 0:01:35.6]} 35. Kf6 {[%clk 0:01:26.3]} 35... Kxe4 {[%clk 0:01:33.7]} 36.
d6 {[%clk 0:01:26.4]} 36... g5 {[%clk 0:01:19.2]} 37. Ke7 {[%clk 0:01:26.2]}
37... Bc6 {[%clk 0:01:18.9]} 38. Bg4 {[%clk 0:00:49.1]} 38... Kd4 {[%clk
0:01:05]} 39. Bd7 {[%clk 0:00:48]} 39... Bf3 {[%clk 0:01:03.2]} 40. Bf5 {[%clk
0:00:39.7]} 40... Bc6 {[%clk 0:01:02.6]} 41. d7 {[%clk 0:00:39.9]} 41... Bxd7
{[%clk 0:01:02.5]} 42. Kxd7 {[%clk 0:00:40.8]} 42... a4 {[%clk 0:00:44.8]} 43.
Kc7 {[%clk 0:00:06.8]} 43... a3 {[%clk 0:00:41.4]} 44. bxa3 {[%clk 0:00:06.5]}
44... bxa3 {[%clk 0:00:41.7]} 45. Kxb7 {[%clk 0:00:04.4]} 45... Kc3 {[%clk
0:00:39.8]} 46. Kb6 {[%clk 0:00:04]} 46... Kb2 {[%clk 0:00:40.1]} 47. Be6 {[%clk
0:00:04.1]} 47... g4 {[%clk 0:00:39.9]} 48. Kc5 {[%clk 0:00:02.3]} 48... g3
{[%clk 0:00:39.3]} 49. Bd5 {[%clk 0:00:02.9]} 49... Ka1 {[%clk 0:00:35.4]} 50.
Kd4 {[%clk 0:00:02.9]} 50... Kb2 {[%clk 0:00:35.2]} 51. Kd3 {[%clk 0:00:03]}
51... g2 {[%clk 0:00:34.8]} 52. Bxg2 {[%clk 0:00:02.3]} 52... Kxa2 {[%clk
0:00:35.7]} 53. Kc2 {[%clk 0:00:02.5]} 53... Ka1 {[%clk 0:00:35.6]} 54. Be4
{[%clk 0:00:03]} 54... Ka2 {[%clk 0:00:35.3]} 55. Kc1 {[%clk 0:00:03]} 55... Ka1
{[%clk 0:00:34.3]} 56. Bf5 {[%clk 0:00:03.9]} 56... a2 {[%clk 0:00:34.5]} 57.
Bc2 {[%clk 0:00:03.9]} 1/2-1/2

[Event "*** Titled Tuesday Blitz"]
[Site "Chess.com"]
[Date "2020.04.21"]
[Round "3"]
[White "Sharpchess22"]
[Black "FLamps8"]
[Result "1-0"]
[WhiteElo "2752"]
[BlackElo "2522"]
[TimeControl "180+1"]
[EndTime "10:29:11 PDT"]
[Termination "Sharpchess22 won on time"]

1. d4 {[%clk 0:03:00.9]} 1... d5 {[%clk 0:02:59.5]} 2. c4 {[%clk 0:03:00.5]}
2... c6 {[%clk 0:02:59.5]} 3. Nf3 {[%clk 0:03:00.8]} 3... Nf6 {[%clk 0:03:00]}
4. Nc3 {[%clk 0:03:00.6]} 4... dxc4 {[%clk 0:03:00.3]} 5. a4 {[%clk 0:03:00]}
5... Bf5 {[%clk 0:03:00.1]} 6. Ne5 {[%clk 0:02:56.3]} 6... Nbd7 {[%clk 0:02:59]}
7. Nxc4 {[%clk 0:02:56.5]} 7... Qc7 {[%clk 0:02:58.8]} 8. g3 {[%clk 0:02:55.1]}
8... e5 {[%clk 0:02:58.6]} 9. dxe5 {[%clk 0:02:55.4]} 9... Nxe5 {[%clk
0:02:59.5]} 10. Bf4 {[%clk 0:02:55.7]} 10... Nfd7 {[%clk 0:02:59.9]} 11. Bg2
{[%clk 0:02:55.2]} 11... g5 {[%clk 0:02:59.3]} 12. Bxe5 {[%clk 0:02:52.9]} 12...
Nxe5 {[%clk 0:02:58.3]} 13. Qd4 {[%clk 0:02:53]} 13... f6 {[%clk 0:02:53.8]} 14.
Ne3 {[%clk 0:02:53]} 14... Be6 {[%clk 0:02:52.5]} 15. O-O {[%clk 0:02:49]} 15...
Qb6 {[%clk 0:02:41.7]} 16. Qd2 {[%clk 0:02:02.3]} 16... Bb4 {[%clk 0:02:40.2]}
17. Qc2 {[%clk 0:01:52.5]} 17... O-O-O {[%clk 0:02:31.2]} 18. Ne4 {[%clk
0:01:48.8]} 18... Rhf8 {[%clk 0:02:21.2]} 19. a5 {[%clk 0:01:41.7]} 19... Bxa5
{[%clk 0:01:54.5]} 20. Nc5 {[%clk 0:01:41.7]} 20... Rd2 {[%clk 0:01:06.3]} 21.
Qc1 {[%clk 0:01:34.5]} 21... Bg8 {[%clk 0:01:05.4]} 22. Nf5 {[%clk 0:00:51.8]}
22... Bb4 {[%clk 0:00:42.9]} 23. Ne4 {[%clk 0:00:42.8]} 23... Rd7 {[%clk
0:00:35.1]} 24. Kh1 {[%clk 0:00:37.4]} 24... Kb8 {[%clk 0:00:30.4]} 25. f4
{[%clk 0:00:36.1]} 25... Ng4 {[%clk 0:00:28.7]} 26. h3 {[%clk 0:00:33.2]} 26...
h5 {[%clk 0:00:17.6]} 27. hxg4 {[%clk 0:00:30]} 27... hxg4 {[%clk 0:00:18.5]}
28. Rf2 {[%clk 0:00:26.8]} 28... Bd5 {[%clk 0:00:16.7]} 29. e3 {[%clk
0:00:21.5]} 29... Rh7+ {[%clk 0:00:05.8]} 30. Kg1 {[%clk 0:00:21.1]} 30... gxf4
{[%clk 0:00:06.7]} 31. Rxf4 {[%clk 0:00:20.1]} 31... Be6 {[%clk 0:00:04.9]} 32.
Nd4 {[%clk 0:00:19.5]} 32... Bc8 {[%clk 0:00:04.2]} 33. Nxf6 {[%clk 0:00:19.1]}
33... Rhf7 {[%clk 0:00:03.9]} 34. Ne4 {[%clk 0:00:18.9]} 34... Rxf4 {[%clk
0:00:03.8]} 35. gxf4 {[%clk 0:00:19.8]} 35... Rxf4 {[%clk 0:00:02.7]} 36. exf4
{[%clk 0:00:15.9]} 36... Qxd4+ {[%clk 0:00:03.1]} 37. Kh2 {[%clk 0:00:16.3]}
37... g3+ {[%clk 0:00:02.9]} 38. Kxg3 {[%clk 0:00:13.6]} 38... Qg7+ {[%clk
0:00:02.8]} 39. Kh2 {[%clk 0:00:11]} 39... Qh8+ {[%clk 0:00:02.2]} 40. Kg1
{[%clk 0:00:11.1]} 40... Qd4+ {[%clk 0:00:02.3]} 41. Nf2 {[%clk 0:00:11.4]}
41... Bc5 {[%clk 0:00:01.3]} 42. Qc2 {[%clk 0:00:11.2]} 42... Bf5 {[%clk
0:00:01.1]} 43. Qe2 {[%clk 0:00:11.1]} 1-0

[Event "*** Titled Tuesday Blitz"]
[Site "Chess.com"]
[Date "2020.04.21"]
[Round "3"]
[White "Grineva_Marianna"]
[Black "AshotParvanyan"]
[Result "0-1"]
[WhiteElo "2181"]
[BlackElo "2514"]
[TimeControl "180+1"]
[EndTime "10:29:11 PDT"]
[Termination "AshotParvanyan won by resignation"]

1. d4 {[%clk 0:03:00.9]} 1... Nf6 {[%clk 0:02:59.5]} 2. c4 {[%clk 0:02:57]} 2...
g6 {[%clk 0:02:59]} 3. Nc3 {[%clk 0:02:57.1]} 3... Bg7 {[%clk 0:02:58.9]} 4. e4
{[%clk 0:02:55.8]} 4... d6 {[%clk 0:02:58.8]} 5. f3 {[%clk 0:02:56]} 5... O-O
{[%clk 0:02:58.4]} 6. Bg5 {[%clk 0:02:55.2]} 6... c5 {[%clk 0:02:57.1]} 7. d5
{[%clk 0:02:51.3]} 7... e6 {[%clk 0:02:55]} 8. Qd2 {[%clk 0:02:38.1]} 8... exd5
{[%clk 0:02:54.1]} 9. Nxd5 {[%clk 0:02:37.7]} 9... Be6 {[%clk 0:02:40.7]} 10.
Nc3 {[%clk 0:02:21.6]} 10... Nc6 {[%clk 0:02:35.8]} 11. Bd3 {[%clk 0:02:04.7]}
11... Ne5 {[%clk 0:02:11.5]} 12. b3 {[%clk 0:01:58.9]} 12... Qa5 {[%clk
0:02:07.4]} 13. Nge2 {[%clk 0:01:51.6]} 13... Nfd7 {[%clk 0:01:43.5]} 14. Be7
{[%clk 0:01:38.9]} 14... Rfe8 {[%clk 0:01:41.5]} 15. Bxd6 {[%clk 0:01:35.3]}
15... Rad8 {[%clk 0:01:37.6]} 16. Rd1 {[%clk 0:01:21.3]} 16... Nxd3+ {[%clk
0:00:58.4]} 17. Qxd3 {[%clk 0:01:18.2]} 17... Ne5 {[%clk 0:00:57.5]} 18. Qc2
{[%clk 0:01:11.4]} 18... Nc6 {[%clk 0:00:24.9]} 19. O-O {[%clk 0:00:41.7]} 19...
Nd4 {[%clk 0:00:24.4]} 20. Nxd4 {[%clk 0:00:31.5]} 20... Bxd4+ {[%clk
0:00:25.3]} 21. Rxd4 {[%clk 0:00:22.8]} 21... cxd4 {[%clk 0:00:26.2]} 22. Nb5
{[%clk 0:00:23.2]} 22... d3 {[%clk 0:00:23.1]} 23. Qf2 {[%clk 0:00:18.3]} 23...
Rc8 {[%clk 0:00:13.6]} 24. Rd1 {[%clk 0:00:17.5]} 24... a6 {[%clk 0:00:12.5]}
25. Nd4 {[%clk 0:00:17]} 25... Rcd8 {[%clk 0:00:11.5]} 26. Bf4 {[%clk
0:00:15.2]} 26... Qb6 {[%clk 0:00:10.4]} 27. Be3 {[%clk 0:00:15.1]} 27... Qc7
{[%clk 0:00:08.8]} 28. Rxd3 {[%clk 0:00:14.6]} 28... b5 {[%clk 0:00:08.4]} 29.
cxb5 {[%clk 0:00:12]} 29... axb5 {[%clk 0:00:07.9]} 30. h3 {[%clk 0:00:10.8]}
30... Bc8 {[%clk 0:00:07.3]} 31. Ne2 {[%clk 0:00:09.5]} 31... Rxd3 {[%clk
0:00:06.7]} 32. Nf4 {[%clk 0:00:07.7]} 32... Rd1+ {[%clk 0:00:06.7]} 33. Kh2
{[%clk 0:00:07.8]} 33... g5 {[%clk 0:00:06.5]} 34. Qg3 {[%clk 0:00:07.2]} 34...
h6 {[%clk 0:00:06.7]} 35. h4 {[%clk 0:00:06.9]} 35... Qe5 {[%clk 0:00:06.6]} 36.
hxg5 {[%clk 0:00:05.7]} 36... hxg5 {[%clk 0:00:07.5]} 37. Ne2 {[%clk 0:00:05.6]}
37... Qxg3+ {[%clk 0:00:06.2]} 38. Nxg3 {[%clk 0:00:06.5]} 38... Re1 {[%clk
0:00:06.1]} 39. Bxg5 {[%clk 0:00:06.3]} 39... Be6 {[%clk 0:00:06.1]} 40. Bd2
{[%clk 0:00:06.1]} 40... Rd1 {[%clk 0:00:05.6]} 41. Bb4 {[%clk 0:00:05.8]} 41...
Rc8 {[%clk 0:00:05.9]} 42. Nf5 {[%clk 0:00:05.4]} 42... Bxf5 {[%clk 0:00:05.6]}
43. exf5 {[%clk 0:00:06.3]} 43... Rc2 {[%clk 0:00:05.9]} 44. Kg3 {[%clk
0:00:05.5]} 44... Rxa2 {[%clk 0:00:05.7]} 0-1